Cogmind - Beta 14 @@@ ROGUE MODE // 2024.10.19 @ 19:26:57 Player: Tereza Result: Destroyed by H-88 Terminator with KE Penetrator Performance ------------- Evolutions (8) 4000 Regions Visited (22) 4400 Robots Destroyed (104) 520 Value Destroyed (4527) 4527 Prototype IDs (16) 320 Alien Tech Used (0) 0 Bonus (4332) 4332 TOTAL SCORE: 18099 Bonus ------- High Alert Combat Kills 142 Follower Combat Kills 1290 Forged Quantum Companion 1000 Registered with UFD 300 Met Warlord at Base 500 MAIN.C Attacked Warlord 500 Built Enhanced Grunts 300 A7 Reached Mainframe 300 Cogmind --------- Core Integrity 0/1450 Matter 300/300 Energy 73/100 System Corruption 5% Temperature Cool (1) Movement Hovering (60) Location -2/Research Parts ------- > --- POWER (1) -------- (None) > --- PROPULSION (4) --- Gravmag Array > --- UTILITY (16) ----- Core Analyzer System Shield > --- WEAPON (2) ------- Quantum Companion > --- INVENTORY (5) ---- Light Quantum Reactor Centrium Leg Centrium Leg Advanced Cloaking Device Heavy Machine Gun Peak State ------------ > --- POWER ------------ Light Quantum Reactor > --- PROPULSION ------- Biometal Leg Centrium Leg Centrium Leg Xenon Bombardment Thruster > --- UTILITY ---------- Advanced Sensor Array Advanced Signal Interpreter Improved Melee Analysis Suite Advanced Melee Analysis Suite Advanced Melee Analysis Suite Core Analyzer Advanced Reaction Control System Advanced Cloaking Device Improved Hacking Suite Improved Hacking Suite Improved System Shield Advanced Recalibrator > --- WEAPON ----------- Companion Sword > --- INVENTORY -------- Advanced Cloaking Device Heavy Machine Gun [Rating: 113] Favorites ----------- Power Light Fission Core Engine Light Angular Momentum Engine Power Core Light Fission Core Reactor Light Antimatter Reactor Propulsion Light Treads Treads Light Treads Leg VSS Leg Wheel Wheel Hover Unit Backup Propulsion III Flight Unit Xenon Bombardment Thruster Utility Improved Hacking Suite Device Scrap Suit Storage Medium Storage Unit Processor Improved Targeting Computer Hackware Improved Hacking Suite Protection Hardened Light Armor Plating Weapon Companion Sword Energy Gun Advanced Beam Rifle Ballistic Gun Heavy Assault Rifle Ballistic Cannon Light Cannon Launcher Heavy Rocket Launcher Impact Weapon Heavy Mace Slashing Weapon Companion Sword Build | -11 -10 -9 -8 -8 -8 -8 -6 -5 -5 -5 -5 -5 -5 -5 -4 -4 -4 -4 -3 -3 -3 -2 ------- Run | Yrd Mat Mat Mat Sto Rec Scr Fac Fac Was Fac Ext Cet Arc Hub Fac Upp Upp War Pro Res Arm Res Slots Evolved 16 | . . 2 2 . . . 4 2 . . . . . . 2 . . . . 2 . 2 Power . | . . . . . . . . . . . . . . . . . . . . . . . Propulsion 2 | . . . . . . . 2 . . . . . . . . . . . . . . . Utility 14 | . . 2 2 . . . 2 2 . . . . . . 2 . . . . 2 . 2 Weapon . | . . . . . . . . . . . . . . . . . . . . . . . Parts Attached 152 | 6 3 12 12 17 . 5 . 11 2 4 18 1 5 3 8 9 2 1 10 4 12 7 Power 24 | 1 . 1 2 3 . 1 . 2 . 1 2 . 2 . 1 2 . . 2 1 3 . Engine 11 | 1 . 1 1 2 . . . . . . 1 . 1 . . 1 . . 1 1 1 . Core 9 | . . . 1 1 . 1 . 2 . 1 1 . . . 1 . . . 1 . . . Reactor 4 | . . . . . . . . . . . . . 1 . . 1 . . . . 2 . Propulsion 49 | 2 . 3 1 5 . . . 6 . 2 6 . 1 2 3 4 . . 5 . 6 3 Treads 13 | 2 . 3 1 4 . . . . . . . . . . . 1 . . 2 . . . Leg 25 | . . . . . . . . 6 . 2 6 . 1 2 3 2 . . . . 3 . Wheel 1 | . . . . . . . . . . . . . . . . 1 . . . . . . Hover 3 | . . . . . . . . . . . . . . . . . . . . . . 3 Flight 7 | . . . . 1 . . . . . . . . . . . . . . 3 . 3 . Utility 57 | 1 2 3 5 4 . 3 . 3 2 1 9 1 2 . 4 3 2 1 1 3 3 4 Device 22 | . 1 2 3 1 . 1 . . . 1 1 . . . 2 1 2 1 . 2 2 2 Storage 2 | 1 . . . 1 . . . . . . . . . . . . . . . . . . Processor 9 | . 1 . . . . . . . . . 3 . . . 2 2 . . . 1 . . Hackware 10 | . . . 1 . . 1 . 2 . . 2 . 2 . . . . . . . . 2 Protection 14 | . . 1 1 2 . 1 . 1 2 . 3 1 . . . . . . 1 . 1 . Artifact . | . . . . . . . . . . . . . . . . . . . . . . . Weapon 22 | 2 1 5 4 5 . 1 . . . . 1 . . 1 . . . . 2 . . . Energy Gun 8 | 2 . 1 2 2 . . . . . . . . . 1 . . . . . . . . Energy Cannon . | . . . . . . . . . . . . . . . . . . . . . . . Ballistic Gun 6 | . 1 3 . 2 . . . . . . . . . . . . . . . . . . Ballistic Cannon 2 | . . 1 1 . . . . . . . . . . . . . . . . . . . Launcher 1 | . . . . . . . . . . . 1 . . . . . . . . . . . Special Weapon . | . . . . . . . . . . . . . . . . . . . . . . . Impact Weapon 2 | . . . 1 1 . . . . . . . . . . . . . . . . . . Slashing Weapon 3 | . . . . . . 1 . . . . . . . . . . . . 2 . . . Piercing Weapon . | . . . . . . . . . . . . . . . . . . . . . . . Special Melee Weapon . | . . . . . . . . . . . . . . . . . . . . . . . Unidentified Prototypes 7 | . . . . 3 . 1 . . . 1 . 1 . . . . . . . . . 1 Corrupted Parts 1 | . . . . 1 . . . . . . . . . . . . . . . . . . System Corruption 2 | . . . . 2 . . . . . . . . . . . . . . . . . . Parts Lost 91 | . . . 13 5 . . . 6 . 1 14 1 3 1 10 4 4 . 7 . 15 7 Power 12 | . . . 2 1 . . . 1 . 1 1 . 1 . 1 2 . . 1 . 1 . Propulsion 34 | . . . 3 1 . . . 2 . . 5 . 1 1 7 2 2 . 2 . 5 3 Utility 39 | . . . 4 3 . . . 2 . . 7 1 1 . 2 . 2 . 4 . 9 4 Weapon 6 | . . . 4 . . . . 1 . . 1 . . . . . . . . . . . Highest Loss Streak 15 | . . . 7 3 . . . 5 . 1 13 1 3 1 5 3 4 . 7 . 15 4 To Critical Strikes . | . . . . . . . . . . . . . . . . . . . . . . . Average Slot Usage (%) 82 | . 99 99 98 77 81 82 60 73 76 86 89 93 92 95 89 77 59 71 65 60 64 22 Engine 2 | . 14 11 7 2 . . . . . . 2 . 2 . . . . 4 1 2 2 . Core 3 | . . . 1 3 9 9 6 4 5 5 2 5 . . 1 1 . . 1 . . . Treads 8 | . 28 22 17 15 18 18 13 1 . . . . . . . 3 1 . 5 . . . Leg 7 | . . . . . . . . 19 17 20 22 23 22 22 18 4 2 . . . 2 . Device 8 | . 6 10 17 10 9 9 6 5 5 6 8 5 . . 3 10 5 8 6 4 11 1 Storage 6 | . 14 11 9 9 9 9 6 5 5 5 5 5 5 5 5 5 1 . . . . . Processor 12 | . 6 11 9 9 9 9 6 5 5 5 9 23 23 23 24 22 26 26 24 19 20 5 Hackware 11 | . . . 8 9 9 10 6 8 11 11 14 17 21 23 21 19 15 15 15 14 12 4 Protection 5 | . . 11 8 2 . 3 6 8 12 17 9 4 5 5 5 . . . . . . 1 Energy Gun 3 | . 27 5 4 7 9 5 . . 3 5 3 . . 1 . . . 8 . . . . Ballistic Gun 2 | . . 11 8 4 9 5 . . . . . . . . . . . . . . . . Slashing Weapon 3 | . . . . . . 3 6 5 5 5 5 5 5 5 5 5 2 . 4 4 4 4 Peak Build Rating 113 | 6 9 14 26 25 25 36 34 59 57 67 72 70 74 79 86 82 77 62 70 73 113 49 Average Rating 46 | 4 7 13 22 21 25 28 34 52 53 60 64 69 70 74 80 74 56 57 59 63 79 37 On Entrance 44 | . 6 9 14 10 25 25 34 34 46 57 65 65 70 74 79 58 77 42 62 54 73 35 Naked Turns . | . . . . . . . . . . . . . . . . . . . . . . . Heaviest Build 54 | 14 15 24 27 24 21 30 30 44 51 52 54 36 39 44 45 44 32 9 24 8 25 8 Greatest Support 70 | 40 40 40 40 40 40 40 40 52 40 68 68 59 62 62 70 23 20 16 56 12 60 20 Greatest Overweight (x) 6 | 1 . . 1 1 . . . 3 1 1 1 . . . 1 6 1 . 1 . 1 1 Average Overweight (x) . | . . . . . . . . . . . . . . . . 1 . . . . . . Largest Inventory Capacity 10 | 8 8 8 8 10 10 10 10 10 10 10 10 10 10 10 10 10 10 5 5 5 5 5 Average Capacity 8 | 6 8 8 8 9 10 10 10 10 10 10 10 10 10 10 10 10 6 5 5 5 5 5 Most Carried 10 | 8 8 8 8 10 10 10 10 10 10 10 10 10 10 10 10 10 10 5 5 5 5 5 Average Carried 8 | 4 7 7 7 8 10 9 10 9 9 9 9 10 9 9 9 9 6 4 4 4 4 5 Final Capacity 10 | 8 8 8 8 10 10 10 10 10 10 10 10 10 10 10 10 10 5 5 5 5 5 5 Final Carried 10 | 6 8 8 6 10 10 10 10 9 10 10 10 10 10 10 8 10 4 5 5 4 5 5 Class Distribution -------------------- 40% | Hacker-Mutant 38% | Scavenger-Mutant 16% | Mutant 4% | Commander-Mutant Dominant Class ---------------- Mutant | -10/Materials Mutant | -9/Materials Scavenger-Mutant | -8/Materials Scavenger-Mutant | -8/Storage Scavenger-Mutant | -8/Recycling Scavenger-Mutant | -8/Scraptown Mutant | -6/Factory Hacker-Mutant | -5/Factory Hacker-Mutant | -5/Waste Hacker-Mutant | -5/Factory Hacker-Mutant | -5/Extension Commander-Mutant | -5/Cetus Commander-Mutant | -5/Archives Commander-Mutant | -5/Hub_04(d) Scavenger-Mutant | -4/Factory Hacker-Mutant | -4/Upper Caves Hacker-Mutant | -4/Upper Caves Hacker-Mutant | -4/Warlord Hacker-Mutant | -3/Proximity Caves Hacker-Mutant | -3/Research Hacker-Mutant | -3/Armory Mutant | -2/Research Resources | -11 -10 -9 -8 -8 -8 -8 -6 -5 -5 -5 -5 -5 -5 -5 -4 -4 -4 -4 -3 -3 -3 -2 ----------- Run | Yrd Mat Mat Mat Sto Rec Scr Fac Fac Was Fac Ext Cet Arc Hub Fac Upp Upp War Pro Res Arm Res Matter Collected 2164 | 255 22 291 320 304 . 67 . 112 20 43 229 15 50 30 60 101 . 25 80 . 1 139 Remotely . | . . . . . . . . . . . . . . . . . . . . . . . Salvage Created 5984 | . 158 353 708 638 . . . 346 . 126 1001 63 33 78 336 684 . . 818 39 278 325 Parts 264 | . 10 40 30 16 . . . 10 . 10 46 5 2 4 17 19 . . 20 1 11 23 Haulers Intercepted 2 | . . 1 1 . . . . . . . . . . . . . . . . . . . Recyclers Shooed 2 | . 1 1 . . . . . . . . . . . . . . . . . . . . Parts Field Recycled . | . . . . . . . . . . . . . . . . . . . . . . . Retrieved Matter . | . . . . . . . . . . . . . . . . . . . . . . . Parts Self-Destructed 14 | . . . . . . . . . . . . . . . . 8 2 . 4 . . . Prevented . | . . . . . . . . . . . . . . . . . . . . . . . Kills | -11 -10 -9 -8 -8 -8 -8 -6 -5 -5 -5 -5 -5 -5 -5 -4 -4 -4 -4 -3 -3 -3 -2 ------- Run | Yrd Mat Mat Mat Sto Rec Scr Fac Fac Was Fac Ext Cet Arc Hub Fac Upp Upp War Pro Res Arm Res Combat Hostiles Destroyed 81 | . 3 13 13 9 . . . 5 . 1 13 1 . 1 5 4 . . 4 . 5 4 Melee 38 | . . . . . . . . 5 . 1 12 1 . 1 4 4 . . 4 . 5 1 Guns 24 | . 2 7 10 5 . . . . . . . . . . . . . . . . . . Cannons 12 | . . 6 3 . . . . . . . . . . . . . . . . . . 3 AOE 2 | . 1 . . . . . . . . . 1 . . . . . . . . . . . Classes Destroyed 13 | . 3 4 3 1 . . . 1 . . . . . . 1 . . . . . . . Worker 1 | . . . 1 . . . . . . . . . . . . . . . . . . . Hauler 2 | . . 1 1 . . . . . . . . . . . . . . . . . . . Recycler 5 | . 1 . 1 2 . . . . . . 1 . . . . . . . . . . . Operator 5 | . . . . 1 . . . 1 . . 1 . 1 . . . . . . . . 1 Watcher 10 | . 1 1 3 . . . . . . 2 2 . . . . . . . . 1 . . Swarmer 17 | . 3 8 . . . . . . . . . . . . . . . . 3 . 3 . Grunt 24 | . . 2 10 3 . . . 3 . . 4 . . . . 1 . . 1 . . . Brawler 1 | . . . 1 . . . . . . . . . . . . . . . . . . . Duelist 4 | . . 1 . 1 . . . . . . . . . . . . . . . . 2 . Sentry 22 | . . 2 1 5 . . . 1 . 1 8 . . 1 1 1 . . . . . 1 Specialist 1 | . . . 1 . . . . . . . . . . . . . . . . . . . Hunter 5 | . . . . . . . . 1 . . 1 . . . 2 . . . . . . 1 Programmer 6 | . . . . . . . . . . . . . . . 2 2 . . . . . 2 Cetus Guard 1 | . . . . . . . . . . . . 1 . . . . . . . . . . Decomposer 3 | . . . . . . . . . . . . . . . . 3 . . . . . . Best Kill Streak 7 | . 5 7 5 6 . . . 2 . 1 3 1 1 1 2 2 . . 3 1 5 2 Combat Bots Only 7 | . 3 7 3 4 . . . 2 . 1 3 1 . 1 2 2 . . 3 . 5 2 Max Kills in Single Turn 2 | . 1 1 1 1 . . . 1 . 1 1 1 1 1 1 2 . . 1 1 1 1 Gunslinging . | . . . . . . . . . . . . . . . . . . . . . . . Exploded 1 | . 1 . . . . . . . . . 1 . . . . . . . . . . . Melee 2 | . . . . . . . . 1 . 1 1 1 . 1 1 2 . . 1 . 1 1 Uniques/NPCs Destroyed . | . . . . . . . . . . . . . . . . . . . . . . . Combat | -11 -10 -9 -8 -8 -8 -8 -6 -5 -5 -5 -5 -5 -5 -5 -4 -4 -4 -4 -3 -3 -3 -2 -------- Run | Yrd Mat Mat Mat Sto Rec Scr Fac Fac Was Fac Ext Cet Arc Hub Fac Upp Upp War Pro Res Arm Res Hostile Shots Fired 1169 | . 9 42 125 60 . . . 91 . 23 187 25 21 9 125 36 60 . 60 2 104 190 Missed 421 | . 4 13 38 17 . . . 24 . 5 68 11 9 4 46 10 13 . 20 2 48 89 Deflected 6 | . . . . . . . . . . . . . . . . . . . . . 1 5 Damage Taken 15502 | . 38 334 1604 686 . . . 1415 . 393 2646 393 331 174 1474 593 836 . 912 9 1491 2173 Core 4163 | . . 47 352 102 . . . 118 . 24 376 49 57 16 151 211 210 . 274 9 709 1458 Absorbed by Shields 107 | . . . . . . . . . . . 74 33 . . . . . . . . . . Redirected to Shielding 61 | . . . . . . . . . . . . . . . . . . . . . 15 46 Regen/Repaired (Parts) 249 | . . . . . . 10 . 40 59 20 74 . . . . 36 . 10 . . . . Core Remaining (%) 63 | 100 100 88 . . . 17 100 . . . . . . 36 . . . . 26 . 44 . Volleys Fired 145 | . 9 28 68 18 . . . . . . 15 . . 4 3 . . . . . . . Largest 2 | . 2 2 2 2 . . . . . . 1 . . 1 1 . . . . . . . Hottest 88 | . 80 88 88 84 . . . . . . 75 . . 81 81 . . . . . . . Shots Fired 261 | . 18 56 136 28 . . . . . . 16 . . 4 3 . . . . . . . Gun 198 | . 18 36 98 28 . . . . . . 11 . . 4 3 . . . . . . . Cannon 58 | . . 20 38 . . . . . . . . . . . . . . . . . . . Launcher 5 | . . . . . . . . . . . 5 . . . . . . . . . . . Special . | . . . . . . . . . . . . . . . . . . . . . . . Kinetic 163 | . . 48 106 9 . . . . . . . . . . . . . . . . . . Thermal 75 | . . 8 30 19 . . . . . . 11 . . 4 3 . . . . . . . Explosive 5 | . . . . . . . . . . . 5 . . . . . . . . . . . Electromagnetic 18 | . 18 . . . . . . . . . . . . . . . . . . . . . Robot Hit Streak 18 | . 4 9 14 14 . . . . . . 18 . . 2 2 . . . . . . . Robot Miss Streak 7 | . 2 7 4 3 . . . . . . 1 . . 2 1 . . . . . . . Penetration Max . | . . . . . . . . . . . . . . . . . . . . . . . Secondary Targets . | . . . . . . . . . . . . . . . . . . . . . . . Autonomous 7 | . . . . . . . . . . . . . . . . . . . . . . 7 Shots Hit Robots 422 | . 10 39 109 39 . . . 31 . 17 54 5 3 4 23 28 1 . 26 3 21 9 Core Hits 205 | . 7 25 62 11 . . . 10 . 5 32 3 2 1 8 13 . . 10 1 8 7 Critical Kills . | . . . . . . . . . . . . . . . . . . . . . . . Critical Parts Destroyed 3 | . . . . 3 . . . . . . . . . . . . . . . . . . Critical Strikes 18 | . . 1 3 4 . . . . . . 3 . . 1 . 4 . . . . 2 . Burn 3 | . . . . 1 . . . . . . 1 . . 1 . . . . . . . . Blast 4 | . . 1 3 . . . . . . . . . . . . . . . . . . . Smash 3 | . . . . 3 . . . . . . . . . . . . . . . . . . Melee Attacks 297 | . . . 6 21 . . . 40 . 22 50 6 5 5 25 30 2 . 27 10 26 22 Impact 27 | . . . 6 21 . . . . . . . . . . . . . . . . . . Slashing 270 | . . . . . . . . 40 . 22 50 6 5 5 25 30 2 . 27 10 26 22 Piercing . | . . . . . . . . . . . . . . . . . . . . . . . Sneak Attacks 7 | . . . . . . . . 1 . . 1 . 1 . . 4 . . . . . . Combat Hostiles . | . . . . . . . . . . . . . . . . . . . . . . . Follow-up Attacks 2 | . . . . . . . . . . . . . . . . 2 . . . . . . Damage Inflicted 15232 | . 274 624 1756 954 . . . 1207 . 673 2435 172 203 158 919 1527 41 . 1869 161 1099 1160 Guns 2506 | . 137 373 1199 454 . . . . . . 218 . . 75 50 . . . . . . . Cannons 1443 | . . 251 557 . . . . . . . . . . . . . . . . . . 635 Explosions 682 | . 137 . . . . . . . . . 545 . . . . . . . . . . . Melee 10588 | . . . . 500 . . . 1207 . 673 1666 172 203 83 866 1527 41 . 1869 161 1099 521 Ramming 13 | . . . . . . . . . . . 6 . . . 3 . . . . . . 4 Kinetic 1973 | . . 546 1313 114 . . . . . . . . . . . . . . . . . . Thermal 1341 | . 137 78 443 340 . . . . . . 218 . . 75 50 . . . . . . . Explosive 545 | . . . . . . . . . . . 545 . . . . . . . . . . . Electromagnetic 137 | . 137 . . . . . . . . . . . . . . . . . . . . . Impact 500 | . . . . 500 . . . . . . . . . . . . . . . . . . Slashing 10088 | . . . . . . . . 1207 . 673 1666 172 203 83 866 1527 41 . 1869 161 1099 521 Piercing . | . . . . . . . . . . . . . . . . . . . . . . . Phasic 635 | . . . . . . . . . . . . . . . . . . . . . . 635 Highest Corruption 7 | . . 1 3 6 6 . . 1 1 1 1 1 1 1 1 3 3 3 . . 7 5 Average Corruption 1 | . . 1 3 3 6 . . 1 1 1 1 1 1 1 1 2 3 3 . . 4 3 Corruption Purged . | . . . . . . . . . . . . . . . . . . . . . . . Corruption Blocked . | . . . . . . . . . . . . . . . . . . . . . . . Effects 59 | . . . 4 10 3 . . . 1 4 9 3 . 1 . 18 1 . . . 2 3 Message Errors 13 | . . . 1 2 2 . . . . 1 1 1 . . . 5 . . . . . . Matter Fused 12 | . . . . 3 1 . . . . 2 1 . . . . 3 . . . . 1 1 Heat Flow Errors 7 | . . . 1 . . . . . . . 2 . . 1 . 1 1 . . . 1 . Energy Discharges 13 | . . . 1 4 . . . . . 1 1 1 . . . 5 . . . . . . Parts Fused 2 | . . . . . . . . . . . . 1 . . . 1 . . . . . . Data Loss (minor) 7 | . . . 1 . . . . . 1 . . . . . . 3 . . . . . 2 Data Loss (major) 2 | . . . . . . . . . . . 2 . . . . . . . . . . . Misfires 2 | . . . . 1 . . . . . . 1 . . . . . . . . . . . Alerts 1 | . . . . . . . . . . . 1 . . . . . . . . . . . Overload Shots . | . . . . . . . . . . . . . . . . . . . . . . . Overflow Damage 1718 | . . . 13 147 . . . 94 . 22 124 . 95 . 32 223 . . 706 . 138 124 Projectiles 62 | . . . 13 . . . . . . . . . . . . . . . . . . 49 Explosions 27 | . . . . . . . . . . . 27 . . . . . . . . . . . Melee 1629 | . . . . 147 . . . 94 . 22 97 . 95 . 32 223 . . 706 . 138 75 Knockbacks 15 | . . 3 11 1 . . . . . . . . . . . . . . . . . . Impact 1 | . . . . 1 . . . . . . . . . . . . . . . . . . Kinetic 12 | . . 2 10 . . . . . . . . . . . . . . . . . . . Secondary 2 | . . 1 1 . . . . . . . . . . . . . . . . . . . Self-Inflicted Damage 2 | . . . . . . . . . . . . . . . . . . . . . . 2 Shots . | . . . . . . . . . . . . . . . . . . . . . . . Rammed 4 | . . . . . . . . . . . . . . . 1 . . . . . . 3 Targets Rammed 6 | . . . . . . . . . . . 1 . . . 2 . . . . . . 3 Kicked 2 | . . . . . . . . . . . 1 . . . 1 . . . . . . . Crushed . | . . . . . . . . . . . . . . . . . . . . . . . Highest Temperature 263 | . 126 262 263 27 . . . 15 . 10 246 . . 213 124 92 233 . . . 225 . Average Temperature 66 | . 64 99 36 7 . . . 7 . 9 66 . . 86 70 58 87 . . . 113 . Received Heat Transfer 2663 | . . 66 486 270 . . . 355 . 144 476 53 45 54 99 78 263 . 67 . 9 198 Siege Activations . | . . . . . . . . . . . . . . . . . . . . . . . Robots Corrupted 5 | . . . . 5 . . . . . . . . . . . . . . . . . . Combat Hostiles 4 | . . . . 4 . . . . . . . . . . . . . . . . . . Parts Fried 6 | . . . . 6 . . . . . . . . . . . . . . . . . . Impact Corruptions 9 | . . . . 9 . . . . . . . . . . . . . . . . . . Robots Melted 1 | . . . . . . . . . . . . . . . 1 . . . . . . . Combat Hostiles 1 | . . . . . . . . . . . . . . . 1 . . . . . . . Parts Melted 3 | . . . . 1 . . . . . . 1 . . . 1 . . . . . . . Heat Transferred 2390 | . 200 105 679 703 . . . . . . 444 . . 185 74 . . . . . . . Parts Sabotaged . | . . . . . . . . . . . . . . . . . . . . . . . Parts Stolen . | . . . . . . . . . . . . . . . . . . . . . . . Parts Stripped . | . . . . . . . . . . . . . . . . . . . . . . . Power Chain Reactions 3 | . 3 . . . . . . . . . . . . . . . . . . . . . Alert | -11 -10 -9 -8 -8 -8 -8 -6 -5 -5 -5 -5 -5 -5 -5 -4 -4 -4 -4 -3 -3 -3 -2 ------- Run | Yrd Mat Mat Mat Sto Rec Scr Fac Fac Was Fac Ext Cet Arc Hub Fac Upp Upp War Pro Res Arm Res Peak Influence 706 | . 122 283 191 319 62 . . 152 19 66 436 411 388 239 194 . . . . 625 459 706 Initial 561 | . . 51 91 7 62 . . . 19 13 32 244 164 135 116 . . . . 561 327 228 Average 142 | . 29 130 81 121 62 . . 24 19 25 132 393 364 165 159 . . . . 580 374 400 Maximum Alert Level 3 | . . 1 . 1 . . . . . . 2 2 1 1 . . . . . 2 2 3 Low Security (%) 75 | 100 100 66 100 87 100 . 100 100 100 100 78 . 1 86 100 . . . . . . . Level 1 13 | . . 33 . 12 . . . . . . 14 11 98 13 . . . . . . 63 50 Level 2 10 | . . . . . . . . . . . 7 88 . . . . . . . 100 36 48 Level 3 . | . . . . . . . . . . . . . . . . . . . . . . . Level 4 . | . . . . . . . . . . . . . . . . . . . . . . . Level 5 . | . . . . . . . . . . . . . . . . . . . . . . . High Security . | . . . . . . . . . . . . . . . . . . . . . . . Max Security . | . . . . . . . . . . . . . . . . . . . . . . . Squads Dispatched 17 | . 1 . 5 . . . . 1 . . 2 . . 2 2 . . . . . 2 2 Investigation . | . . . . . . . . . . . . . . . . . . . . . . . Extermination 2 | . . . . . . . . . . . . . . . 1 . . . . . . 1 Reinforcement 15 | . 1 . 5 . . . . 1 . . 2 . . 2 1 . . . . . 2 1 Assault . | . . . . . . . . . . . . . . . . . . . . . . . Garrison . | . . . . . . . . . . . . . . . . . . . . . . . Intercept . | . . . . . . . . . . . . . . . . . . . . . . . Searches Triggered 1 | . . . . . . . . . . . . . . . . . . . . . . 1 Construction Impeded 1 | . . . . . . . . . . . . . . 1 . . . . . . . . Haulers Reinforced . | . . . . . . . . . . . . . . . . . . . . . . . Active Scanning Responses . | . . . . . . . . . . . . . . . . . . . . . . . Cargo Convoy Interrupts . | . . . . . . . . . . . . . . . . . . . . . . . Stealth | -11 -10 -9 -8 -8 -8 -8 -6 -5 -5 -5 -5 -5 -5 -5 -4 -4 -4 -4 -3 -3 -3 -2 --------- Run | Yrd Mat Mat Mat Sto Rec Scr Fac Fac Was Fac Ext Cet Arc Hub Fac Upp Upp War Pro Res Arm Res Distress Signals 15 | . 1 2 2 2 . . . 1 . . 1 1 . . . . . . 3 . . 2 Communications Jammed . | . . . . . . . . . . . . . . . . . . . . . . . Distress Signals . | . . . . . . . . . . . . . . . . . . . . . . . Times Spotted 204 | . 5 17 26 12 . . . 11 . 4 34 5 4 4 6 4 7 1 13 2 20 29 Peak Tracking Total 15 | . 3 6 4 5 . . . 4 . 2 7 5 3 3 3 2 7 1 6 2 9 15 Tactical Retreats 22 | . . . . 2 . . . 3 . . 1 . . . . . 1 . 3 . 4 8 Traps | -11 -10 -9 -8 -8 -8 -8 -6 -5 -5 -5 -5 -5 -5 -5 -4 -4 -4 -4 -3 -3 -3 -2 ------- Run | Yrd Mat Mat Mat Sto Rec Scr Fac Fac Was Fac Ext Cet Arc Hub Fac Upp Upp War Pro Res Arm Res Traps Triggered 5 | . . 1 . 1 . . . 1 . . 1 . . 1 . . . . . . . . Indirectly . | . . . . . . . . . . . . . . . . . . . . . . . Trap Hack Attempts . | . . . . . . . . . . . . . . . . . . . . . . . Triggered . | . . . . . . . . . . . . . . . . . . . . . . . Disarmed . | . . . . . . . . . . . . . . . . . . . . . . . Reprogrammed . | . . . . . . . . . . . . . . . . . . . . . . . Reused . | . . . . . . . . . . . . . . . . . . . . . . . Traps Extracted . | . . . . . . . . . . . . . . . . . . . . . . . Installed . | . . . . . . . . . . . . . . . . . . . . . . . Triggered 12 | . . . . . . . . . . . . . . . . 1 . 11 . . . . Machines | -11 -10 -9 -8 -8 -8 -8 -6 -5 -5 -5 -5 -5 -5 -5 -4 -4 -4 -4 -3 -3 -3 -2 ---------- Run | Yrd Mat Mat Mat Sto Rec Scr Fac Fac Was Fac Ext Cet Arc Hub Fac Upp Upp War Pro Res Arm Res Machines Disabled 6 | . . . . . . . . . . . 1 . 1 2 . . . . . . 2 . Max in Single Turn 1 | . . . . . . . . . . . 1 . . . . . . . . . 1 . Garrison Access 1 | . . . . 1 . . . . . . . . . . . . . . . . . . Machines Repaired . | . . . . . . . . . . . . . . . . . . . . . . . Machines Dismantled . | . . . . . . . . . . . . . . . . . . . . . . . Machines Sabotaged . | . . . . . . . . . . . . . . . . . . . . . . . Overloaded Fab Kills . | . . . . . . . . . . . . . . . . . . . . . . . Hacking | -11 -10 -9 -8 -8 -8 -8 -6 -5 -5 -5 -5 -5 -5 -5 -4 -4 -4 -4 -3 -3 -3 -2 --------- Run | Yrd Mat Mat Mat Sto Rec Scr Fac Fac Was Fac Ext Cet Arc Hub Fac Upp Upp War Pro Res Arm Res Machines Accessed 38 | . 1 3 1 8 . 3 1 . . 2 6 2 . 1 . . . 2 . . 5 3 Terminals 32 | . 1 3 1 7 . . 1 . . 2 6 2 . 1 . . . . . . 5 3 Fabricators . | . . . . . . . . . . . . . . . . . . . . . . . Repair Stations . | . . . . . . . . . . . . . . . . . . . . . . . Recycling Units . | . . . . . . . . . . . . . . . . . . . . . . . Scanalyzers . | . . . . . . . . . . . . . . . . . . . . . . . Garrison Access 1 | . . . . 1 . . . . . . . . . . . . . . . . . . Total Hacks 80 | . 2 9 3 18 . 7 1 . . 4 10 5 . 1 . . . 2 . . 15 3 Successful 36 | . . 4 . 6 . 7 . . . 3 6 4 . 1 . . . 2 . . 3 . Failed 44 | . 2 5 3 12 . . 1 . . 1 4 1 . . . . . . . . 12 3 Catastrophic 11 | . . . 2 4 . . . . . . . . . . . . . . . . 3 2 Database Lockouts . | . . . . . . . . . . . . . . . . . . . . . . . Manual 25 | . . 6 3 1 . . . . . 3 3 2 . . . . . . . . 4 3 Terminals 70 | . 2 9 3 17 . . 1 . . 4 10 5 . 1 . . . . . . 15 3 Fabricators . | . . . . . . . . . . . . . . . . . . . . . . . Repair Stations . | . . . . . . . . . . . . . . . . . . . . . . . Recycling Units . | . . . . . . . . . . . . . . . . . . . . . . . Scanalyzers . | . . . . . . . . . . . . . . . . . . . . . . . Garrison Access 1 | . . . . 1 . . . . . . . . . . . . . . . . . . Terminal Hacks 33 | . . 2 . 5 . 7 . . . 3 6 4 . 1 . . . 2 . . 3 . Record 10 | . . . . . . 6 . . . . 1 3 . . . . . . . . . . Prototype ID Bank 1 | . . . . 1 . . . . . . . . . . . . . . . . . . Open Door 13 | . . . . 4 . 1 . . . . 4 1 . . . . . 2 . . 1 . Level Access Points 2 | . . . . . . . . . . . . . . 1 . . . . . . 1 . Branch Access Points 3 | . . . . . . . . . . 1 1 . . . . . . . . . 1 . Alert Level 2 | . . 1 . . . . . . . 1 . . . . . . . . . . . . Maintenance Status 1 | . . . . . . . . . . 1 . . . . . . . . . . . . Surveillance Status 1 | . . 1 . . . . . . . . . . . . . . . . . . . . Fabricator Hacks . | . . . . . . . . . . . . . . . . . . . . . . . Repair Station Hacks . | . . . . . . . . . . . . . . . . . . . . . . . Recycling Unit Hacks . | . . . . . . . . . . . . . . . . . . . . . . . Scanalyzer . | . . . . . . . . . . . . . . . . . . . . . . . Garrison Access Hacks 1 | . . . . 1 . . . . . . . . . . . . . . . . . . Seal Access 1 | . . . . 1 . . . . . . . . . . . . . . . . . . Unauthorized Hacks 2 | . . 2 . . . . . . . . . . . . . . . . . . . . Terminals 2 | . . 2 . . . . . . . . . . . . . . . . . . . . Botnet 2 | . . 2 . . . . . . . . . . . . . . . . . . . . Fabricators . | . . . . . . . . . . . . . . . . . . . . . . . Repair Stations . | . . . . . . . . . . . . . . . . . . . . . . . Recycling Units . | . . . . . . . . . . . . . . . . . . . . . . . Scanalyzers . | . . . . . . . . . . . . . . . . . . . . . . . Garrison Access . | . . . . . . . . . . . . . . . . . . . . . . . Data Cores Recovered 1 | . . . . 1 . . . . . . . . . . . . . . . . . . Used . | . . . . . . . . . . . . . . . . . . . . . . . Hacking Detections 22 | . 1 2 1 5 . . 1 . . 1 3 1 . . . . . . . . 4 3 Full Trace Events 1 | . . . . 1 . . . . . . . . . . . . . . . . . . Feedback Events . | . . . . . . . . . . . . . . . . . . . . . . . Feedback Blocked . | . . . . . . . . . . . . . . . . . . . . . . . Robot Schematics Acquired . | . . . . . . . . . . . . . . . . . . . . . . . Robots Built . | . . . . . . . . . . . . . . . . . . . . . . . Authchips . | . . . . . . . . . . . . . . . . . . . . . . . Time . | . . . . . . . . . . . . . . . . . . . . . . . Total Robot Build Rating . | . . . . . . . . . . . . . . . . . . . . . . . Part Schematics Acquired . | . . . . . . . . . . . . . . . . . . . . . . . Parts Built . | . . . . . . . . . . . . . . . . . . . . . . . Authchips . | . . . . . . . . . . . . . . . . . . . . . . . Time . | . . . . . . . . . . . . . . . . . . . . . . . Total Part Build Rating . | . . . . . . . . . . . . . . . . . . . . . . . Parts Repaired . | . . . . . . . . . . . . . . . . . . . . . . . Time . | . . . . . . . . . . . . . . . . . . . . . . . Parts Recycled . | . . . . . . . . . . . . . . . . . . . . . . . Recycled Matter . | . . . . . . . . . . . . . . . . . . . . . . . Retrieved Matter . | . . . . . . . . . . . . . . . . . . . . . . . Retrieved Components . | . . . . . . . . . . . . . . . . . . . . . . . Parts Scanalyzed . | . . . . . . . . . . . . . . . . . . . . . . . Part Schematics Acquired . | . . . . . . . . . . . . . . . . . . . . . . . Parts Damaged . | . . . . . . . . . . . . . . . . . . . . . . . Bothacking | -11 -10 -9 -8 -8 -8 -8 -6 -5 -5 -5 -5 -5 -5 -5 -4 -4 -4 -4 -3 -3 -3 -2 ------------ Run | Yrd Mat Mat Mat Sto Rec Scr Fac Fac Was Fac Ext Cet Arc Hub Fac Upp Upp War Pro Res Arm Res Used RIF Installer . | . . . . . . . . . . . . . . . . . . . . . . . Robots Hacked . | . . . . . . . . . . . . . . . . . . . . . . . Non-combat . | . . . . . . . . . . . . . . . . . . . . . . . Combat . | . . . . . . . . . . . . . . . . . . . . . . . Robot Hacks Applied . | . . . . . . . . . . . . . . . . . . . . . . . Relay Couplers Released . | . . . . . . . . . . . . . . . . . . . . . . . Fabnet Peak Effective % . | . . . . . . . . . . . . . . . . . . . . . . . Robots Rewired 23 | . . . . . . . . . . 1 21 . . . . . . . . . 1 . Allies Hacked . | . . . . . . . . . . . . . . . . . . . . . . . Hacks Repelled . | . . . . . . . . . . . . . . . . . . . . . . . Allies | -11 -10 -9 -8 -8 -8 -8 -6 -5 -5 -5 -5 -5 -5 -5 -4 -4 -4 -4 -3 -3 -3 -2 -------- Run | Yrd Mat Mat Mat Sto Rec Scr Fac Fac Was Fac Ext Cet Arc Hub Fac Upp Upp War Pro Res Arm Res Total Allies 32 | . . . . . . . . . . 1 25 5 . . . . . . . . 1 . Largest Group 17 | . . . . . . . . . . 1 12 17 17 16 4 . . . . . 1 . Highest-Rated Group 953 | . . . . . . . . . . 29 480 953 953 801 189 . . . . . 48 . Highest-Rated Ally 159 | . . . . . . . . . . 29 159 159 152 96 96 . . . . . 48 . Total Orders . | . . . . . . . . . . . . . . . . . . . . . . . Ally Attacks 280 | . . . . . . . . . . . 157 32 29 51 9 . . . . . 2 . Total Damage 7033 | . . . . . . . . . . . 3915 584 571 1712 131 . . . . . 120 . Kills 34 | . . . . . . . . . . . 20 4 6 4 . . . . . . . . Allies Corrupted 1 | . . . . . . . . . . . . . . . 1 . . . . . . . Allies Melted 2 | . . . . . . . . . . . . . . 2 . . . . . . . . Intel | -11 -10 -9 -8 -8 -8 -8 -6 -5 -5 -5 -5 -5 -5 -5 -4 -4 -4 -4 -3 -3 -3 -2 ------- Run | Yrd Mat Mat Mat Sto Rec Scr Fac Fac Was Fac Ext Cet Arc Hub Fac Upp Upp War Pro Res Arm Res Robot Analysis Total . | . . . . . . . . . . . . . . . . . . . . . . . Derelict Logs Recovered 1 | . . . . . . . . . . . . . . . . 1 . . . . . . Drone Launches 3 | . . . . . . . . . . . . . . . . . 3 . . . . . Drone Recoveries 1 | . . . . . . . . . . . . . . . . . 1 . . . . . Exploration | -11 -10 -9 -8 -8 -8 -8 -6 -5 -5 -5 -5 -5 -5 -5 -4 -4 -4 -4 -3 -3 -3 -2 ------------- Run | Yrd Mat Mat Mat Sto Rec Scr Fac Fac Was Fac Ext Cet Arc Hub Fac Upp Upp War Pro Res Arm Res Turns Passed 11615 | 70 173 531 1253 649 80 2205 56 579 332 594 1385 361 192 114 432 1022 109 512 284 126 249 307 Spaces Moved 7672 | 37 86 256 329 283 51 1369 36 329 230 379 936 214 133 80 303 532 133 600 286 246 337 487 Core 428 | 5 . . 4 26 . . . . . . . . . . . 1 109 156 22 . 14 91 Treads 2525 | 32 86 256 325 245 51 1369 36 45 . . . . . . . 3 . . 77 . . . Legs 2974 | . . . . . . . . 284 230 379 936 214 133 80 303 382 24 . . . 9 . Wheels 146 | . . . . . . . . . . . . . . . . 146 . . . . . . Hover 580 | . . . . . . . . . . . . . . . . . . 444 9 . . 127 Flight 1019 | . . . . 12 . . . . . . . . . . . . . . 178 246 314 269 Fastest Speed 32 | 50 160 160 100 32 160 160 160 90 100 97 100 105 105 110 110 120 50 50 34 37 37 40 Average Speed 117 | 146 160 160 160 151 160 160 160 104 143 136 106 105 110 111 114 174 74 69 73 37 45 47 Slowest Speed 360 | 160 160 160 240 240 160 160 160 360 183 183 180 105 112 112 190 350 190 76 160 37 120 120 Overloaded Moves 7 | . . . . 7 . . . . . . . . . . . . . . . . . . Propulsion Burnouts . | . . . . . . . . . . . . . . . . . . . . . . . Robots Hopped 3 | . . . . . . . . . . . . . . . . . . . . 1 . 2 Cave-ins Triggered . | . . . . . . . . . . . . . . . . . . . . . . . Exploration Rate (%) 38 | 4 15 29 33 38 12 90 2 8 89 10 86 77 87 10 11 60 35 78 51 10 31 17 Regions Visited 22 Branch Regions 12 Pre-discovered Areas . | . . . . . . . . . . . . . . . . . . . . . . . Known Exits Taken 12 | . . . . . . . . . . 1 1 1 1 1 1 1 1 1 1 1 1 . Unknown Exits Taken 8 | 1 1 1 1 1 1 1 1 . . . . . . . . . . . . . . . Scrap Searched 12 | . . . . . . 6 . . . . . . . . . 4 2 . . . . . Spaces Dug 35 | . . . 6 . . . . 1 . 4 . . . 2 3 . . . . 7 2 10 Terrain Destroyed 69 | . 11 . 6 . . . . 1 . 4 23 . . 2 3 . . . . 7 2 10 Melee 35 | . . . 6 . . . . 1 . 4 . . . 2 3 . . . . 7 2 10 Projectile . | . . . . . . . . . . . . . . . . . . . . . . . AOE 34 | . 11 . . . . . . . . . 23 . . . . . . . . . . . Terrain Rammed . | . . . . . . . . . . . . . . . . . . . . . . . Walls Destroyed . | . . . . . . . . . . . . . . . . . . . . . . . Machines Disabled . | . . . . . . . . . . . . . . . . . . . . . . . Actions | -11 -10 -9 -8 -8 -8 -8 -6 -5 -5 -5 -5 -5 -5 -5 -4 -4 -4 -4 -3 -3 -3 -2 --------- Run | Yrd Mat Mat Mat Sto Rec Scr Fac Fac Was Fac Ext Cet Arc Hub Fac Upp Upp War Pro Res Arm Res Total 9627 | 51 104 329 910 440 50 1387 35 508 232 421 1243 342 170 97 348 593 141 695 335 264 399 533 Wait 1078 | . . 18 479 83 . 1 . 119 . 13 85 120 24 . 5 6 . 94 . 6 10 15 Move 7646 | 36 85 255 328 282 50 1368 35 329 229 378 935 213 132 79 303 531 132 599 285 243 336 483 Hop 3 | . . . . . . . . . . . . . . . . . . . . 1 . 2 Pick Up 79 | 9 4 5 9 9 . 3 . 4 1 1 15 1 1 2 . 6 . 1 4 . 4 . Fast Attach 83 | 3 2 3 3 11 . 4 . 5 2 2 10 1 3 . 5 6 1 1 5 3 6 7 Attach 42 | 3 . 1 5 4 . . . 4 . 2 5 . 1 2 3 3 1 . 4 1 3 . Detach 25 | . . . . 3 . 2 . . . 1 . . 1 . 3 6 3 . 3 . 3 . Swap 27 | . 1 8 4 2 . 1 . 2 . . 3 . 1 1 . . . . 1 . 3 . Drop 81 | . 3 11 8 7 . 8 . 5 . . 14 1 2 1 . 7 2 . 6 . 5 1 Fire 145 | . 9 28 68 18 . . . . . . 15 . . 4 3 . . . . . . . Melee 295 | . . . 6 21 . . . 40 . 22 50 6 5 5 25 28 2 . 27 10 26 22 Ram 3 | . . . . . . . . . . . . . . . . . . . . . . 3 Kick 2 | . . . . . . . . . . . 1 . . . 1 . . . . . . . Crush . | . . . . . . . . . . . . . . . . . . . . . . . Escape Stasis 11 | . . . . . . . . . . . 8 . . 3 . . . . . . . . Rewire 107 | . . . . . . . . . . 2 102 . . . . . . . . . 3 . Trap . | . . . . . . . . . . . . . . . . . . . . . . . Miscellaneous . | . . . . . . . . . . . . . . . . . . . . . . . Route ------- -11/Scrapyard -10/Materials -9/Materials -8/Materials -8/Storage -8/Recycling -8/Scraptown (discovered 2 exits: *Fac x2) -6/Factory -5/Factory -5/Waste -5/Factory (discovered 4 exits: Upp x2 / *Ext x2) -5/Extension (discovered 3 exits: *Fac x2 / *Cet) -5/Cetus -5/Archives (discovered 3 exits: *Fac / *Hub x2) -5/Hub_04(d) (discovered 4 exits: *Fac x4) -4/Factory -4/Upper Caves -4/Upper Caves -4/Warlord -3/Proximity Caves -3/Research -3/Armory (discovered 2 exits: *Res x2) -2/Research History --------- Turn | Location | Event 5 | -11/Scrapyard | Discovered new exit (range 15) 71 | -11/Scrapyard | Entered Materials 196 | -10/Materials | Discovered new exit (range 15) 244 | -10/Materials | Entered another Materials area 244 | -9/Materials | Evolved 2 slots: Utility x2 318 | -9/Materials | Build established: Mutant 587 | -9/Materials | Destroyed 7 combat bots 731 | -9/Materials | Discovered new exit (range 16) 775 | -9/Materials | Entered another Materials area 775 | -8/Materials | Evolved 2 slots: Utility x2 907 | -8/Materials | Build established: Scavenger-Mutant 2005 | -8/Materials | Discovered new exit (range 11) 2027 | -8/Materials | Core integrity fell below 50% 2028 | -8/Materials | Entered Storage 2055 | -8/Storage | Lost 7 parts (1p2n2u2w) 2430 | -8/Storage | Core integrity fell below 20% 2450 | -8/Storage | Lost 3 parts (1n2u) 2671 | -8/Storage | Used back door to open Recycling access 2671 | -8/Storage | Discovered new exit (range 5) 2677 | -8/Storage | Entered Recycling 2717 | -8/Recycling | Scanned before Scraplab entrance 2740 | -8/Recycling | Entered Scraplab 2754 | -8/Recycling | Discovered new exit (range 3) 2757 | -8/Recycling | Entered Scraptown 2757 | -8/Scraptown | System corruption cleaned by C-Scrubber 2951 | -8/Scraptown | Visited Assassins FH 2983 | -8/Scraptown | Visited SPCMW 3167 | -8/Scraptown | Heard Great Nut preacher, LISTEN AND RECITE! 3364 | -8/Scraptown | Discovered new exit (range 7) 3498 | -8/Scraptown | Visited CPS Storage 3521 | -8/Scraptown | Visited Cyclists 3530 | -8/Scraptown | Visited Bundlers 3681 | -8/Scraptown | Visited Awakened 3709 | -8/Scraptown | Visited TADAMA 3851 | -8/Scraptown | Visited UFD Registry 3851 | -8/Scraptown | Registered with UFD as "Novaspreader" 3986 | -8/Scraptown | Visited Supply Room 4075 | -8/Scraptown | Visited Infowarlord's Domain 4129 | -8/Scraptown | Visited Modified Component R&D 4153 | -8/Scraptown | Visited Sword Containment 4262 | -8/Scraptown | Visited Scrap Suit Storage 4269 | -8/Scraptown | Found Scrap Suit 4280 | -8/Scraptown | Found Scrap Suit 4436 | -8/Scraptown | Visited Chapter 10 4471 | -8/Scraptown | Visited Science Testing Area 4566 | -8/Scraptown | Build established: Mutant 4949 | -8/Scraptown | Discovered new exit (range 5) 4962 | -8/Scraptown | Entered Factory 4962 | -6/Factory | Evolved 4 slots: Propulsion x2, Utility x2 5010 | -6/Factory | Discovered new exit (range 5) 5018 | -6/Factory | Entered another Factory area 5018 | -5/Factory | Evolved 2 slots: Utility x2 5388 | -5/Factory | Build established: Hacker-Mutant 5490 | -5/Factory | Lost 5 parts (1p1n2u1w) 5597 | -5/Factory | Sucked down chute 5597 | -5/Factory | Entered Waste 5597 | -5/Waste | The area was eerily silent 5885 | -5/Waste | Discovered new exit (range 11) 5929 | -5/Waste | Entered Factory 6226 | -5/Factory | Identified exit to Upper Caves 6226 | -5/Factory | Identified exit to Extension 6523 | -5/Factory | Entered Extension 6523 | -5/Extension | Accompanied by 1 ally 6565 | -5/Extension | Rescued a captive Derelict 6566 | -5/Extension | Rescued a captive Derelict 6772 | -5/Extension | Identified exit to Cetus 6957 | -5/Extension | Lost 8 allies 7346 | -5/Extension | Spotted B-75 Beast 7362 | -5/Extension | Allies destroyed B-75 Beast 7367 | -5/Extension | Spotted B-75 Beast 7384 | -5/Extension | Allies destroyed B-75 Beast 7429 | -5/Extension | Lost 4 allies 7462 | -5/Extension | Lost 13 parts (1p5n6u1w) 7494 | -5/Extension | Discovered new exit (range 3) 7496 | -5/Extension | Identified exit to Factory 7606 | -5/Extension | Rescued A7 7655 | -5/Extension | Rescued a captive Derelict 7680 | -5/Extension | Core integrity fell below 50% 7722 | -5/Extension | Build established: Scavenger-Mutant 7856 | -5/Extension | Discovered exit to Factory (range 10) 7908 | -5/Extension | Entered Cetus 7908 | -5/Cetus | Accompanied by 12 allies (A7) 7913 | -5/Cetus | Acquired a Cetus Manufacturing Module code from A7 7923 | -5/Cetus | Spotted Cetus Guard 7923 | -5/Cetus | Spotted Cetus Guard 7923 | -5/Cetus | Spotted Cetus Guard 7925 | -5/Cetus | Spotted Cetus Guard 7930 | -5/Cetus | Allies destroyed Cetus Guard 7945 | -5/Cetus | Destroyed Cetus Guard 7948 | -5/Cetus | Allies destroyed Cetus Guard 7949 | -5/Cetus | Allies destroyed Cetus Guard 8012 | -5/Cetus | Started Cetus Manufacturing Module 8037 | -5/Cetus | Manufactured an Enhanced Grunt 8062 | -5/Cetus | Manufactured an Enhanced Grunt 8063 | -5/Cetus | Escorted A7 to Cetus Mainframe 8087 | -5/Cetus | Manufactured an Enhanced Grunt 8112 | -5/Cetus | Manufactured an Enhanced Grunt 8137 | -5/Cetus | Manufactured an Enhanced Grunt 8224 | -5/Cetus | Discovered new exit (range 15) 8239 | -5/Cetus | Identified exit to Archives 8269 | -5/Cetus | Entered Archives 8269 | -5/Archives | Accompanied by 17 allies (A7) 8274 | -5/Archives | Received a hacking code to weaken MAIN.C 8297 | -5/Archives | Discovered new exit (range 16) 8316 | -5/Archives | Unable to access archive contents 8324 | -5/Archives | Build established: Commander-Mutant 8329 | -5/Archives | Lost 3 parts (1p1n1u) 8357 | -5/Archives | Discovered new exit (range 16) 8379 | -5/Archives | Discovered exit to Factory (range 15) 8433 | -5/Archives | Identified exit to Hub_04(d) 8461 | -5/Archives | Entered Hub_04(d) 8461 | -5/Hub_04(d) | Accompanied by 16 allies 8575 | -5/Hub_04(d) | Entered Factory 8575 | -4/Factory | Accompanied by 4 allies 8575 | -4/Factory | Evolved 2 slots: Utility x2 8592 | -4/Factory | Lost 11 allies 8843 | -4/Factory | Build established: Scavenger-Mutant 8882 | -4/Factory | Lost 4 allies 8895 | -4/Factory | Lost 5 parts (4n1u) 8982 | -4/Factory | Discovered new exit (range 16) 8999 | -4/Factory | Identified exit to Upper Caves 9007 | -4/Factory | Entered Upper Caves 9037 | -4/Upper Caves | Lost 3 parts (2n1u) 9294 | -4/Upper Caves | Lost 3 parts (2p1n) 9324 | -4/Upper Caves | Attracted the attention of an 0b10 checkpoint 9435 | -4/Upper Caves | Learned location of 1 exit from Proximity Caves 9513 | -4/Upper Caves | Build established: Hacker-Mutant 9997 | -4/Upper Caves | Discovered new exit (range 16) 10023 | -4/Upper Caves | Identified exit to Upper Caves 10029 | -4/Upper Caves | Entered another Upper Caves area 10058 | -4/Upper Caves | Attracted the attention of an 0b10 base 10111 | -4/Upper Caves | Lost 4 parts (2n2u) 10133 | -4/Upper Caves | Discovered new exit (range 11) 10138 | -4/Upper Caves | Identified exit to Warlord 10138 | -4/Upper Caves | Entered Warlord 10156 | -4/Warlord | System corruption cleaned by Quarantine Array 10201 | -4/Warlord | Visited the Vortex Lab 10207 | -4/Warlord | Met EX-DEC 10222 | -4/Warlord | Warlord's base attacked by MAIN.C 10471 | -4/Warlord | Rebuked by Warlord 10572 | -4/Warlord | Warlord forces counterattacked 10598 | -4/Warlord | Opened side exit 10638 | -4/Warlord | Spotted Executioner 10640 | -4/Warlord | Discovered new exit (range 9) 10649 | -4/Warlord | Identified exit to Proximity Caves 10650 | -4/Warlord | Entered Proximity Caves 10651 | -3/Proximity Caves | Identified exit to Research 10699 | -3/Proximity Caves | Core integrity fell below 50% 10757 | -3/Proximity Caves | Spotter reported a threat 10788 | -3/Proximity Caves | Attracted the attention of an 0b10 checkpoint 10868 | -3/Proximity Caves | Spotter reported a threat 10897 | -3/Proximity Caves | Lost 7 parts (1p2n4u) 10921 | -3/Proximity Caves | Spotter reported a threat 10934 | -3/Proximity Caves | Entered Research 10934 | -3/Research | Evolved 2 slots: Utility x2 11059 | -3/Research | Discovered new exit (range 5) 11060 | -3/Research | Identified exit to Armory 11060 | -3/Research | Entered Armory 11175 | -3/Armory | Identified exit to Research 11231 | -3/Armory | Forged Quantum Companion 11288 | -3/Armory | Core integrity fell below 50% 11309 | -3/Armory | Entered Research 11309 | -2/Research | Evolved 2 slots: Utility x2 11318 | -2/Research | Lost 15 parts (1p5n9u) 11465 | -2/Research | Core integrity fell below 50% 11502 | -2/Research | Lost 4 parts (2n2u) 11535 | -2/Research | Core integrity fell below 20% 11602 | -2/Research | Search patrols dispatched 11616 | -2/Research | Destroyed by H-88 Terminator with KE Penetrator Last Messages --------------- System corrupted: Component data lost. G-73 Enforcer suffers critical hit (Burn). Drone sends a signal. ALERT: Rogue bot located, Programmers report to Research Zone 4M. Door malfunctions. Deflected attack with Quantum Companion. Connecting with Terminal... System corrupted: Matter fused (-8). Quantum Companion releases a shadow of itself that zips off towards P-80 Master. Destroyed Gamma Rifle. P-80 Master destroyed. ALERT: Heightened foreign activity detected, multiple search patrols dispatched. Acquired 53 matter. Slug penetrates Wall. Gravmag Array destroyed. Slug penetrates Wall. Penetrated by Slug. Map ----- +----------------------------------------------------+ | ??????????????????????????????????????????????? | | ??????????????????????????????????????????????? | | ??????????????????????????????????????????????? | | ??????????????????????????????????????????????? | | ??????????????????????????????????????????????? | | ??????????????????????????????????????????????? | | ??????????????????????????????????????????????? | | ??????????????????????????????????????????????? | | ??????????????????????????????????????????????? | | ??????????????????????????????????????????????? | | ??????????????????????????????????????????????? | | ??????????????????????????????????????????????? | | ??????????????????????????????????????????????? | | ??????????????????########????????????????????? | | ??????????????????# * #????????????????????? | | ??????????????????# #????????????????????? | | ??????????????????# ]#????????????????????? | | ??????????????????# ##???????????????????# | | ?????????#######??# "#???????????????????# | | ?????????# ! =?#*!!= ##???????????????????# | | ?????????# !?###+####????????????????????# | | ?????????# # *%[ #?????????????????????# | | ?????????# # "" #?????????????????????# | | ?????????#""" ! + T" #?????????????????????# | | ?????????#"R # ##????????????????????# | | ?????????#""" # @ ;#????????????????????# | | ?????????# ?###h##;#????????????????????# | | ?????????# / ???# ###"###????????????????## | | ?????????#######????# ## ???????????????+ | | ????????????????????# + ???????????????# | | ????????????????????# ##? ????? ?????????## | | ????????????????????# #?? ?? ????####### | | ????????????????????# #??? """ ?????# | | ????????????????????# #??? """" ?????# | | ????????????????????# #???? """"??????# | | ????????????????????# #???? """ ??????# | | ????????????????????# #????? ???????# | | ????????????????????# ##???? ???????# | | ????????????????????# +????? ????????# | | ????????????????????# #????? ????????# | | ????????????????????# #######+##############/# | | ????????????????????# | | ????????????????????+ | | ????????????????????# | | ????????????????????+ | | ????????????????????###########+############### | | ??????????????????????????????????????????????? | | ??????????????????????????????????????????????? | | ????????????????????#?????????????????????????? | | ??????????????????? ??????????????????????????? | +----------------------------------------------------+ Best States ------------- Heat Dissipation 49 Energy Generation 25 Energy Capacity 340 Matter Stores 300 Matter Capacity 300 Sight Range 16 Robot Scan Range 16 Terrain Scan Range 14 Terrain Scan Density 10 Cloak Strength 4 Armor Coverage 600 Core Shielding 30 Melee Speed Boost 20 Phase Shifting 10 Evasion (%) 65 Targeting Accuracy 6 Melee Accuracy 22 Target Analysis 6 Core Analysis 6 Armor Integrity Analysis 30 Recoil Reduction 6 Offensive Hacking 44 Defensive Hacking 12 Item Schematics ----------------- None Robot Schematics ------------------ None Fabricated ------------ Nothing Alien Tech Used ----------------- None Achievements -------------- Ambidextrous Main Advantage Challenges ------------ None Game ------ Seed SkeletonSigixCapacitor Manual? 0 Play Time 01:32:00 Cumulative 77.8 hours Start 2024.10.19 @ 17:42:43 End 2024.10.19 @ 19:26:57 Sessions 1 Manual Loads 0 Difficulty Rogue Special Mode None Game No. 94 Rogue 94 Adventurer 0 Explorer 0 Win Type - Total 0 Types 0/0/0/0/0/0/0/0/0 Lore% 53 Gallery% 45 Achievement% 37 Wizard Run 0 Options --------- Layout 1 ASCII 0 Keyboard 1 Movement Numpad Keybinds 0 Fullscreen 1 Font 24/Smallcaps Map View 50x35 Zoom Use 0% Tactical HUD 0 Map Filters NONE Filters NONE Steam 1 RUN: f4510957-d686-499d-9337-638949405ff9